[Event "Titled Tuesday Blitz February 14 Late 2023"]
[White "Buchenau, Frank"]
[Black "Sanchez, Sebastian Felipe"]
[WhiteFideId "4604350"]
[BlackFideId "4403304"]
[WhiteElo "2222"]
[BlackElo "2427"]
[Result "0-1"]
[Round "03"]
[TimeControl "180+2"]
[Date "2023.02.14"]
[WhiteClock "0:00:26"]
[BlackClock "0:01:33"]

1. e4 {[%clk 0:03:00]}  e6 {[%clk 0:02:58]} 2. Nf3 {[%clk 0:02:59]}  d5 {[%clk 0:02:59]} 3. Nc3 {[%clk 0:02:59]}  Nf6 {[%clk 0:02:59]} 4. e5 {[%clk 0:02:59]}  Nfd7 {[%clk 0:02:59]} 5. d4 {[%clk 0:03:00]}  c5 {[%clk 0:03:00]} 6. dxc5 {[%clk 0:03:01]}  Nc6 {[%clk 0:03:00]} 7. Bf4 {[%clk 0:03:01]}  h6 {[%clk 0:02:58]} 8. Bd3 {[%clk 0:03:00]}  Nxc5 {[%clk 0:02:57]} 9. Bg3 {[%clk 0:02:58]}  Be7 {[%clk 0:02:57]} 10. O-O {[%clk 0:02:57]}  Bd7 {[%clk 0:02:57]} 11. Ne2 {[%clk 0:02:55]}  Rc8 {[%clk 0:02:57]} 12. Ned4 {[%clk 0:02:54]}  Qb6 {[%clk 0:02:56]} 13. Nb3 {[%clk 0:02:48]}  Nb4 {[%clk 0:02:50]} 14. Bh4 {[%clk 0:02:24]}  Nbxd3 {[%clk 0:02:42]} 15. Bxe7 {[%clk 0:02:15]}  Nxb3 {[%clk 0:02:35]} 16. axb3 {[%clk 0:02:02]}  Kxe7 {[%clk 0:02:31]} 17. Qxd3 {[%clk 0:01:44]}  Bb5 {[%clk 0:02:30]} 18. c4 {[%clk 0:01:44]}  dxc4 {[%clk 0:02:31]} 19. bxc4 {[%clk 0:01:43]}  Bxc4 {[%clk 0:02:31]} 20. Qa3+ {[%clk 0:01:42]}  Qc5 {[%clk 0:02:31]} 21. b4 {[%clk 0:01:42]}  Qb6 {[%clk 0:02:24]} 22. Rfd1 {[%clk 0:01:31]}  Be2 {[%clk 0:02:18]} 23. Rd6 {[%clk 0:01:23]}  Qb5 {[%clk 0:02:14]} 24. Qe3 {[%clk 0:00:40]}  Bxf3 {[%clk 0:02:12]} 25. gxf3 {[%clk 0:00:40]}  Rc4 {[%clk 0:01:44]} 26. Rad1 {[%clk 0:00:36]}  Rhc8 {[%clk 0:01:34]} 27. Qf4 {[%clk 0:00:26]}  Rxf4 {[%clk 0:01:33]} 0-1


[Site "https://www.chess.com"]

[Event "Titled Tuesday Blitz February 14 Late 2023"]
[White "Risteski, Emil"]
[Black "Jovic, Stanoje"]
[WhiteFideId "15005267"]
[BlackFideId "905020"]
[WhiteElo "2366"]
[BlackElo "2075"]
[Result "0-1"]
[Round "03"]
[TimeControl "180+2"]
[Date "2023.02.14"]
[WhiteClock "0:00:53"]
[BlackClock "0:01:09"]

1. f4 {[%clk 0:02:58]}  d5 {[%clk 0:02:58]} 2. Nf3 {[%clk 0:02:58]}  c5 {[%clk 0:02:58]} 3. e3 {[%clk 0:02:58]}  Nc6 {[%clk 0:02:56]} 4. b3 {[%clk 0:02:57]}  Nf6 {[%clk 0:02:55]} 5. Bb2 {[%clk 0:02:56]}  Bg4 {[%clk 0:02:55]} 6. Bb5 {[%clk 0:02:55]}  Qb6 {[%clk 0:02:52]} 7. Bxc6+ {[%clk 0:02:55]}  Qxc6 {[%clk 0:02:50]} 8. O-O {[%clk 0:02:54]}  e6 {[%clk 0:02:48]} 9. h3 {[%clk 0:02:53]}  Bxf3 {[%clk 0:02:48]} 10. Qxf3 {[%clk 0:02:54]}  h5 {[%clk 0:02:45]} 11. d3 {[%clk 0:02:51]}  h4 {[%clk 0:02:40]} 12. Nd2 {[%clk 0:02:50]}  Nh5 {[%clk 0:02:37]} 13. e4 {[%clk 0:02:47]}  O-O-O {[%clk 0:02:29]} 14. a4 {[%clk 0:02:34]}  Ng3 {[%clk 0:02:26]} 15. Rfe1 {[%clk 0:02:34]}  f6 {[%clk 0:02:17]} 16. Nf1 {[%clk 0:02:28]}  dxe4 {[%clk 0:02:14]} 17. dxe4 {[%clk 0:02:28]}  Nxf1 {[%clk 0:02:13]} 18. Qxf1 {[%clk 0:02:25]}  c4 {[%clk 0:02:09]} 19. Kh1 {[%clk 0:02:13]}  Rd2 {[%clk 0:02:06]} 20. Re2 {[%clk 0:02:09]}  c3 {[%clk 0:02:01]} 21. Bc1 {[%clk 0:02:02]}  Bb4 {[%clk 0:01:58]} 22. Bxd2 {[%clk 0:02:02]}  cxd2 {[%clk 0:01:58]} 23. Rd1 {[%clk 0:02:02]}  Qxc2 {[%clk 0:01:52]} 24. Re3 {[%clk 0:01:52]}  Rd8 {[%clk 0:01:47]} 25. Qc4+ {[%clk 0:01:41]}  Qxc4 {[%clk 0:01:46]} 26. bxc4 {[%clk 0:01:42]}  Kc7 {[%clk 0:01:44]} 27. Rb3 {[%clk 0:01:41]}  a5 {[%clk 0:01:43]} 28. Kg1 {[%clk 0:01:42]}  Kc6 {[%clk 0:01:43]} 29. Kf1 {[%clk 0:01:42]}  Kc5 {[%clk 0:01:43]} 30. Ke2 {[%clk 0:01:38]}  Kxc4 {[%clk 0:01:44]} 31. Re3 {[%clk 0:01:29]}  Rd4 {[%clk 0:01:37]} 32. Rb1 {[%clk 0:01:26]}  f5 {[%clk 0:01:32]} 33. exf5 {[%clk 0:01:17]}  exf5 {[%clk 0:01:32]} 34. Rf3 {[%clk 0:01:06]}  Re4+ {[%clk 0:01:31]} 35. Re3 {[%clk 0:01:07]}  Rxf4 {[%clk 0:01:30]} 36. Rf3 {[%clk 0:01:05]}  Rxf3 {[%clk 0:01:24]} 37. Kxf3 {[%clk 0:01:06]}  Kc3 {[%clk 0:01:21]} 38. Ke2 {[%clk 0:01:07]}  g5 {[%clk 0:01:19]} 39. Rf1 {[%clk 0:01:05]}  Kb3 {[%clk 0:01:18]} 40. Rxf5 {[%clk 0:01:01]}  Kxa4 {[%clk 0:01:18]} 41. Rxg5 {[%clk 0:01:01]}  Kb3 {[%clk 0:01:18]} 42. g3 {[%clk 0:00:54]}  Kc2 {[%clk 0:01:09]} 43. Rd5 {[%clk 0:00:53]}  hxg3 {[%clk 0:01:09]} 44. h4 {[%clk 0:00:53]}  g2 {[%clk 0:01:10]} 45. Kf2 {[%clk 0:00:52]}  d1=Q {[%clk 0:01:09]} 46. Rxd1 {[%clk 0:00:52]}  Kxd1 {[%clk 0:01:09]} 47. Kxg2 {[%clk 0:00:53]} 0-1


[Site "https://www.chess.com"]

[Event "Titled Tuesday Blitz February 14 Late 2023"]
[White "Le Goff, Ronan"]
[Black "Thomforde-Toates, Noah"]
[WhiteFideId "612073"]
[BlackFideId "30951992"]
[WhiteElo "2320"]
[BlackElo "2124"]
[Result "0-1"]
[Round "03"]
[TimeControl "180+2"]
[Date "2023.02.14"]
[WhiteClock "0:01:14"]
[BlackClock "0:00:31"]

1. d4 {[%clk 0:02:53]}  Nf6 {[%clk 0:02:58]} 2. Nf3 {[%clk 0:02:53]}  g6 {[%clk 0:02:58]} 3. Bf4 {[%clk 0:02:50]}  Bg7 {[%clk 0:02:58]} 4. Nc3 {[%clk 0:02:50]}  d6 {[%clk 0:02:58]} 5. h3 {[%clk 0:02:50]}  Nbd7 {[%clk 0:02:58]} 6. e4 {[%clk 0:02:50]}  c6 {[%clk 0:02:50]} 7. e5 {[%clk 0:02:44]}  Nd5 {[%clk 0:02:29]} 8. Nxd5 {[%clk 0:02:43]}  cxd5 {[%clk 0:02:30]} 9. exd6 {[%clk 0:02:44]}  e6 {[%clk 0:02:30]} 10. c3 {[%clk 0:02:42]}  O-O {[%clk 0:02:25]} 11. Be2 {[%clk 0:02:22]}  Nf6 {[%clk 0:02:21]} 12. O-O {[%clk 0:02:13]}  Ne4 {[%clk 0:02:20]} 13. Re1 {[%clk 0:02:12]}  Nxd6 {[%clk 0:02:18]} 14. a4 {[%clk 0:02:11]}  a5 {[%clk 0:02:18]} 15. Be5 {[%clk 0:02:11]}  f6 {[%clk 0:02:16]} 16. Bh2 {[%clk 0:02:11]}  Nf7 {[%clk 0:02:15]} 17. Nd2 {[%clk 0:02:09]}  b6 {[%clk 0:02:12]} 18. Qb3 {[%clk 0:02:06]}  Re8 {[%clk 0:02:07]} 19. Bb5 {[%clk 0:02:03]}  Re7 {[%clk 0:02:02]} 20. Re3 {[%clk 0:02:02]}  Bh6 {[%clk 0:02:01]} 21. Re2 {[%clk 0:02:02]}  Bd7 {[%clk 0:01:58]} 22. Rae1 {[%clk 0:01:58]}  Bxd2 {[%clk 0:01:29]} 23. Rxd2 {[%clk 0:01:56]}  Bxb5 {[%clk 0:01:23]} 24. Qxb5 {[%clk 0:01:54]}  Nd6 {[%clk 0:01:23]} 25. Bxd6 {[%clk 0:01:51]}  Qxd6 {[%clk 0:01:23]} 26. Rde2 {[%clk 0:01:52]}  Rae8 {[%clk 0:01:21]} 27. Re3 {[%clk 0:01:51]}  Kg7 {[%clk 0:01:20]} 28. g3 {[%clk 0:01:50]}  h5 {[%clk 0:01:19]} 29. h4 {[%clk 0:01:50]}  Kf7 {[%clk 0:01:10]} 30. Kg2 {[%clk 0:01:50]}  Rg8 {[%clk 0:01:07]} 31. Rf3 {[%clk 0:01:50]}  g5 {[%clk 0:01:06]} 32. hxg5 {[%clk 0:01:46]}  Rxg5 {[%clk 0:01:07]} 33. Rh1 {[%clk 0:01:41]}  Re8 {[%clk 0:01:05]} 34. Rh4 {[%clk 0:01:39]}  Rh8 {[%clk 0:01:03]} 35. Qa6 {[%clk 0:01:37]}  Qc7 {[%clk 0:01:01]} 36. Rhf4 {[%clk 0:01:35]}  f5 {[%clk 0:01:00]} 37. Qe2 {[%clk 0:01:31]}  h4 {[%clk 0:00:58]} 38. Re3 {[%clk 0:01:29]}  Qxf4 {[%clk 0:00:43]} 39. Rxe6 {[%clk 0:01:29]}  Qc7 {[%clk 0:00:40]} 40. Qe3 {[%clk 0:01:17]}  f4 {[%clk 0:00:32]} 41. Qe2 {[%clk 0:01:14]}  hxg3 {[%clk 0:00:31]} 0-1


[Site "https://www.chess.com"]

[Event "Titled Tuesday Blitz February 14 Late 2023"]
[White "Barbosa, Evandro Amorim"]
[Black "Rangel, Daniel"]
[WhiteFideId "2115824"]
[BlackFideId "2124475"]
[WhiteElo "2491"]
[BlackElo "2207"]
[Result "1-0"]
[Round "03"]
[TimeControl "180+2"]
[Date "2023.02.14"]
[WhiteClock "0:00:35"]
[BlackClock "0:00:02"]

1. e4 {[%clk 0:02:56]}  c5 {[%clk 0:03:00]} 2. Nf3 {[%clk 0:02:55]}  g6 {[%clk 0:03:01]} 3. Bc4 {[%clk 0:02:52]}  Bg7 {[%clk 0:03:01]} 4. O-O {[%clk 0:02:52]}  Nc6 {[%clk 0:03:00]} 5. c3 {[%clk 0:02:52]}  e6 {[%clk 0:03:00]} 6. d4 {[%clk 0:02:51]}  cxd4 {[%clk 0:03:01]} 7. Nxd4 {[%clk 0:02:51]}  Nxd4 {[%clk 0:03:00]} 8. cxd4 {[%clk 0:02:50]}  d5 {[%clk 0:03:01]} 9. exd5 {[%clk 0:02:48]}  exd5 {[%clk 0:03:01]} 10. Re1+ {[%clk 0:02:47]}  Ne7 {[%clk 0:02:48]} 11. Bb5+ {[%clk 0:02:44]}  Bd7 {[%clk 0:02:47]} 12. Bxd7+ {[%clk 0:02:38]}  Qxd7 {[%clk 0:02:48]} 13. Qe2 {[%clk 0:02:35]}  Bf6 {[%clk 0:02:35]} 14. Bh6 {[%clk 0:02:34]}  O-O-O {[%clk 0:02:34]} 15. Nc3 {[%clk 0:02:32]}  Rhe8 {[%clk 0:02:29]} 16. Nb5 {[%clk 0:02:21]}  Nc6 {[%clk 0:01:57]} 17. Qf3 {[%clk 0:02:18]}  Bxd4 {[%clk 0:01:31]} 18. Bf4 {[%clk 0:02:12]}  Bc5 {[%clk 0:00:55]} 19. Rec1 {[%clk 0:02:09]}  Bb6 {[%clk 0:00:11]} 20. Nd6+ {[%clk 0:02:06]}  Qxd6 {[%clk 0:00:12]} 21. Bxd6 {[%clk 0:02:06]}  Rxd6 {[%clk 0:00:12]} 22. Qxf7 {[%clk 0:01:57]}  Re2 {[%clk 0:00:11]} 23. Rf1 {[%clk 0:01:50]}  Rd7 {[%clk 0:00:06]} 24. Qf8+ {[%clk 0:01:45]}  Kc7 {[%clk 0:00:05]} 25. Rac1 {[%clk 0:01:45]}  Rxb2 {[%clk 0:00:02]} 26. a4 {[%clk 0:01:38]}  a5 {[%clk 0:00:01]} 27. Qf4+ {[%clk 0:01:35]}  Kc8 {[%clk 0:00:01]} 28. Rce1 {[%clk 0:01:34]}  Rb4 {[%clk 0:00:01]} 29. Re8+ {[%clk 0:01:33]}  Bd8 {[%clk 0:00:02]} 30. Qf8 {[%clk 0:01:24]}  Rxa4 {[%clk 0:00:02]} 31. Rc1 {[%clk 0:01:24]}  d4 {[%clk 0:00:02]} 32. Qf6 {[%clk 0:01:12]}  d3 {[%clk 0:00:02]} 33. h4 {[%clk 0:00:39]}  d2 {[%clk 0:00:02]} 34. Rxc6+ {[%clk 0:00:39]}  bxc6 {[%clk 0:00:02]} 35. Qxc6+ {[%clk 0:00:40]}  Rc7 {[%clk 0:00:03]} 36. Qa8+ {[%clk 0:00:39]}  Kd7 {[%clk 0:00:03]} 37. Qxd8+ {[%clk 0:00:40]}  Kc6 {[%clk 0:00:03]} 38. Qxd2 {[%clk 0:00:36]}  Rc4 {[%clk 0:00:02]} 39. Re6+ {[%clk 0:00:35]} 1-0


[Site "https://www.chess.com"]

[Event "Titled Tuesday Blitz February 14 Late 2023"]
[White "Fernandez Garcia, Gumersindo"]
[Black "Katz, Alexander"]
[WhiteFideId "24516740"]
[BlackFideId "2039796"]
[WhiteElo "2160"]
[BlackElo "2470"]
[Result "0-1"]
[Round "03"]
[TimeControl "180+2"]
[Date "2023.02.14"]
[WhiteClock "0:00:11"]
[BlackClock "0:00:24"]

1. e4 {[%clk 0:03:00]}  c6 {[%clk 0:02:56]} 2. c4 {[%clk 0:03:00]}  d5 {[%clk 0:02:56]} 3. cxd5 {[%clk 0:03:01]}  cxd5 {[%clk 0:02:57]} 4. exd5 {[%clk 0:03:02]}  Nf6 {[%clk 0:02:56]} 5. Nc3 {[%clk 0:03:02]}  Nxd5 {[%clk 0:02:55]} 6. Nf3 {[%clk 0:03:03]}  Nc6 {[%clk 0:02:55]} 7. Bb5 {[%clk 0:03:02]}  e6 {[%clk 0:02:53]} 8. d4 {[%clk 0:03:00]}  Bd7 {[%clk 0:02:53]} 9. Nxd5 {[%clk 0:02:56]}  exd5 {[%clk 0:02:54]} 10. O-O {[%clk 0:02:56]}  Be7 {[%clk 0:02:55]} 11. Bf4 {[%clk 0:02:55]}  O-O {[%clk 0:02:55]} 12. Re1 {[%clk 0:02:52]}  Rc8 {[%clk 0:02:49]} 13. h3 {[%clk 0:02:24]}  Re8 {[%clk 0:02:39]} 14. Bd3 {[%clk 0:02:11]}  Bf6 {[%clk 0:02:24]} 15. Rxe8+ {[%clk 0:02:09]}  Qxe8 {[%clk 0:02:25]} 16. a3 {[%clk 0:02:03]}  g6 {[%clk 0:02:24]} 17. Be3 {[%clk 0:01:39]}  Qf8 {[%clk 0:02:17]} 18. Rc1 {[%clk 0:01:35]}  Qg7 {[%clk 0:02:17]} 19. Bb5 {[%clk 0:01:32]}  a6 {[%clk 0:02:11]} 20. Ba4 {[%clk 0:01:31]}  Bf5 {[%clk 0:01:57]} 21. Bb3 {[%clk 0:01:26]}  Be4 {[%clk 0:01:55]} 22. Rc5 {[%clk 0:01:01]}  Rd8 {[%clk 0:01:53]} 23. Ng5 {[%clk 0:00:47]}  Bxd4 {[%clk 0:01:26]} 24. Bxd4 {[%clk 0:00:38]}  Qxd4 {[%clk 0:01:23]} 25. Qxd4 {[%clk 0:00:24]}  Nxd4 {[%clk 0:01:24]} 26. Nxe4 {[%clk 0:00:23]}  dxe4 {[%clk 0:01:12]} 27. Rd5 {[%clk 0:00:23]}  Nc6 {[%clk 0:00:42]} 28. Kf1 {[%clk 0:00:20]}  Kf8 {[%clk 0:00:38]} 29. Rxd8+ {[%clk 0:00:19]}  Nxd8 {[%clk 0:00:39]} 30. Bd5 {[%clk 0:00:19]}  f5 {[%clk 0:00:39]} 31. Ke2 {[%clk 0:00:17]}  Ke7 {[%clk 0:00:39]} 32. Ke3 {[%clk 0:00:17]}  Kd6 {[%clk 0:00:40]} 33. Bg8 {[%clk 0:00:18]}  Nc6 {[%clk 0:00:26]} 34. Bxh7 {[%clk 0:00:17]}  Ne7 {[%clk 0:00:26]} 35. h4 {[%clk 0:00:17]}  Ke5 {[%clk 0:00:26]} 36. h5 {[%clk 0:00:14]}  f4+ {[%clk 0:00:25]} 37. Ke2 {[%clk 0:00:14]}  gxh5 {[%clk 0:00:25]} 38. g3 {[%clk 0:00:15]}  f3+ {[%clk 0:00:23]} 39. Ke3 {[%clk 0:00:15]}  Nd5+ {[%clk 0:00:23]} 40. Kd2 {[%clk 0:00:15]}  Nf6 {[%clk 0:00:23]} 41. Bg6 {[%clk 0:00:15]}  Ng4 {[%clk 0:00:23]} 42. Bxh5 {[%clk 0:00:15]}  Nxf2 {[%clk 0:00:23]} 43. Be8 {[%clk 0:00:13]}  Kd4 {[%clk 0:00:22]} 44. Bd7 {[%clk 0:00:10]}  e3+ {[%clk 0:00:22]} 45. Ke1 {[%clk 0:00:11]}  Nd3+ {[%clk 0:00:23]} 46. Kd1 {[%clk 0:00:10]}  e2+ {[%clk 0:00:24]} 47. Kc2 {[%clk 0:00:11]}  e1=Q {[%clk 0:00:24]} 0-1


[Site "https://www.chess.com"]

[Event "Titled Tuesday Blitz February 14 Late 2023"]
[White "Domingo Nunez, Ruben"]
[Black "Papayan, Oleg"]
[WhiteFideId "22245570"]
[BlackFideId "4193911"]
[WhiteElo "2416"]
[BlackElo "2253"]
[Result "1-0"]
[Round "03"]
[TimeControl "180+2"]
[Date "2023.02.14"]
[WhiteClock "0:01:11"]
[BlackClock "0:00:01"]

1. e4 {[%clk 0:02:53]}  d5 {[%clk 0:02:57]} 2. exd5 {[%clk 0:02:47]}  Qxd5 {[%clk 0:02:58]} 3. Nc3 {[%clk 0:02:47]}  Qd8 {[%clk 0:02:59]} 4. Bc4 {[%clk 0:02:47]}  c6 {[%clk 0:02:59]} 5. d3 {[%clk 0:02:48]}  Bf5 {[%clk 0:03:00]} 6. Qf3 {[%clk 0:02:48]}  e6 {[%clk 0:02:59]} 7. g4 {[%clk 0:02:48]}  Bg6 {[%clk 0:02:59]} 8. h4 {[%clk 0:02:49]}  h5 {[%clk 0:02:59]} 9. g5 {[%clk 0:02:49]}  Nd7 {[%clk 0:02:53]} 10. Qg3 {[%clk 0:02:44]}  Nb6 {[%clk 0:02:46]} 11. Bb3 {[%clk 0:02:44]}  Bd6 {[%clk 0:02:47]} 12. Bf4 {[%clk 0:02:39]}  Bxf4 {[%clk 0:02:47]} 13. Qxf4 {[%clk 0:02:40]}  Ne7 {[%clk 0:02:48]} 14. Nf3 {[%clk 0:02:40]}  Nbd5 {[%clk 0:02:35]} 15. Qd4 {[%clk 0:02:36]}  Nf5 {[%clk 0:02:28]} 16. Qc5 {[%clk 0:02:27]}  Qd6 {[%clk 0:01:56]} 17. Qxd6 {[%clk 0:01:56]}  Nxd6 {[%clk 0:01:57]} 18. Ne5 {[%clk 0:01:56]}  Bf5 {[%clk 0:01:57]} 19. Ne2 {[%clk 0:01:54]}  a5 {[%clk 0:01:36]} 20. a3 {[%clk 0:01:51]}  a4 {[%clk 0:01:32]} 21. Ba2 {[%clk 0:01:52]}  f6 {[%clk 0:01:09]} 22. Nf3 {[%clk 0:01:51]}  Bg4 {[%clk 0:01:07]} 23. Nd2 {[%clk 0:01:47]}  fxg5 {[%clk 0:00:47]} 24. hxg5 {[%clk 0:01:47]}  Nf7 {[%clk 0:00:31]} 25. f3 {[%clk 0:01:44]}  Bf5 {[%clk 0:00:32]} 26. Ne4 {[%clk 0:01:44]}  Bxe4 {[%clk 0:00:26]} 27. fxe4 {[%clk 0:01:42]}  Ne3 {[%clk 0:00:26]} 28. Kd2 {[%clk 0:01:40]}  Ng4 {[%clk 0:00:15]} 29. Bxe6 {[%clk 0:01:40]}  Ke7 {[%clk 0:00:10]} 30. Nf4 {[%clk 0:01:33]}  Rhd8 {[%clk 0:00:02]} 31. Rxh5 {[%clk 0:01:25]}  Nge5 {[%clk 0:00:01]} 32. Rf1 {[%clk 0:01:21]}  Nd6 {[%clk 0:00:01]} 33. Ke3 {[%clk 0:01:12]}  Rf8 {[%clk 0:00:01]} 34. Bh3 {[%clk 0:01:11]} 1-0


[Site "https://www.chess.com"]

[Event "Titled Tuesday Blitz February 14 Late 2023"]
[White "Mujumdar, Sameer"]
[Black "Gubajdullin, Alexei"]
[WhiteFideId "2029707"]
[BlackFideId "4141202"]
[WhiteElo "1992"]
[BlackElo "2285"]
[Result "1/2-1/2"]
[Round "03"]
[TimeControl "180+2"]
[Date "2023.02.14"]
[WhiteClock "0:00:53"]
[BlackClock "0:01:38"]

1. b3 {[%clk 0:03:00]}  Nf6 {[%clk 0:02:56]} 2. Bb2 {[%clk 0:03:01]}  g6 {[%clk 0:02:56]} 3. g3 {[%clk 0:03:02]}  Bg7 {[%clk 0:02:55]} 4. Bg2 {[%clk 0:03:02]}  O-O {[%clk 0:02:55]} 5. Nf3 {[%clk 0:03:02]}  d6 {[%clk 0:02:55]} 6. c4 {[%clk 0:03:01]}  e5 {[%clk 0:02:55]} 7. O-O {[%clk 0:03:00]}  c5 {[%clk 0:02:55]} 8. e3 {[%clk 0:02:57]}  Nc6 {[%clk 0:02:55]} 9. d4 {[%clk 0:02:55]}  exd4 {[%clk 0:02:54]} 10. exd4 {[%clk 0:02:55]}  Ne4 {[%clk 0:02:54]} 11. Nbd2 {[%clk 0:02:53]}  Bf5 {[%clk 0:02:50]} 12. Re1 {[%clk 0:02:51]}  Re8 {[%clk 0:02:48]} 13. Nh4 {[%clk 0:02:39]}  Nxd2 {[%clk 0:02:47]} 14. Qxd2 {[%clk 0:02:32]}  cxd4 {[%clk 0:02:45]} 15. Nxf5 {[%clk 0:02:31]}  gxf5 {[%clk 0:02:43]} 16. Bxc6 {[%clk 0:02:22]}  bxc6 {[%clk 0:02:43]} 17. Bxd4 {[%clk 0:02:22]}  Be5 {[%clk 0:02:28]} 18. Rad1 {[%clk 0:02:17]}  Qf6 {[%clk 0:02:27]} 19. Kg2 {[%clk 0:01:28]}  f4 {[%clk 0:02:23]} 20. Bxe5 {[%clk 0:01:21]}  dxe5 {[%clk 0:02:23]} 21. Qc3 {[%clk 0:01:20]}  Re7 {[%clk 0:02:11]} 22. Qf3 {[%clk 0:01:17]}  Qg6 {[%clk 0:02:03]} 23. c5 {[%clk 0:01:12]}  Re6 {[%clk 0:01:57]} 24. Kh1 {[%clk 0:01:11]}  fxg3 {[%clk 0:01:54]} 25. fxg3 {[%clk 0:01:12]}  e4 {[%clk 0:01:54]} 26. Qf4 {[%clk 0:01:10]}  Rae8 {[%clk 0:01:52]} 27. Rd6 {[%clk 0:01:08]}  e3 {[%clk 0:01:51]} 28. Rxe3 {[%clk 0:00:58]}  Qb1+ {[%clk 0:01:48]} 29. Kg2 {[%clk 0:00:56]}  Rxe3 {[%clk 0:01:47]} 30. Qg5+ {[%clk 0:00:57]}  Kf8 {[%clk 0:01:42]} 31. Qh6+ {[%clk 0:00:55]}  Kg8 {[%clk 0:01:41]} 32. Qg5+ {[%clk 0:00:56]}  Kh8 {[%clk 0:01:39]} 33. Qf6+ {[%clk 0:00:54]}  Kg8 {[%clk 0:01:38]} 34. Qg5+ {[%clk 0:00:53]} 1/2-1/2


[Site "https://www.chess.com"]

[Event "Titled Tuesday Blitz February 14 Late 2023"]
[White "Fiorito, Joaquin"]
[Black "Nilsson, Joakim"]
[WhiteFideId "180173"]
[BlackFideId "1723383"]
[WhiteElo "2405"]
[BlackElo "2188"]
[Result "1-0"]
[Round "03"]
[TimeControl "180+2"]
[Date "2023.02.14"]
[WhiteClock "0:01:03"]
[BlackClock "0:01:19"]

1. d4 {[%clk 0:03:00]}  Nf6 {[%clk 0:02:59]} 2. Nc3 {[%clk 0:03:01]}  d5 {[%clk 0:02:58]} 3. Bf4 {[%clk 0:03:02]}  Bf5 {[%clk 0:02:56]} 4. f3 {[%clk 0:03:02]}  e6 {[%clk 0:02:54]} 5. g4 {[%clk 0:03:02]}  Bg6 {[%clk 0:02:54]} 6. Qd2 {[%clk 0:03:02]}  c5 {[%clk 0:02:53]} 7. Nb5 {[%clk 0:03:02]}  Na6 {[%clk 0:02:52]} 8. e3 {[%clk 0:02:59]}  h6 {[%clk 0:02:48]} 9. h4 {[%clk 0:02:58]}  Be7 {[%clk 0:02:47]} 10. c3 {[%clk 0:02:58]}  Qb6 {[%clk 0:02:44]} 11. a4 {[%clk 0:02:58]}  c4 {[%clk 0:02:40]} 12. Bg3 {[%clk 0:02:55]}  Kd8 {[%clk 0:02:15]} 13. Nh3 {[%clk 0:02:49]}  Ne8 {[%clk 0:02:13]} 14. Nf4 {[%clk 0:02:49]}  Bh7 {[%clk 0:02:13]} 15. Bg2 {[%clk 0:02:38]}  Nac7 {[%clk 0:02:11]} 16. Nxc7 {[%clk 0:02:34]}  Nxc7 {[%clk 0:02:12]} 17. e4 {[%clk 0:02:27]}  Kc8 {[%clk 0:02:03]} 18. O-O {[%clk 0:02:09]}  g5 {[%clk 0:02:01]} 19. Nh5 {[%clk 0:01:54]}  gxh4 {[%clk 0:01:58]} 20. Be5 {[%clk 0:01:54]}  Rg8 {[%clk 0:01:56]} 21. Qc2 {[%clk 0:01:54]}  Bg6 {[%clk 0:01:44]} 22. Nf6 {[%clk 0:01:49]}  Rd8 {[%clk 0:01:43]} 23. Rab1 {[%clk 0:01:38]}  Qb3 {[%clk 0:01:42]} 24. Qxb3 {[%clk 0:01:35]}  cxb3 {[%clk 0:01:43]} 25. Rbc1 {[%clk 0:01:25]}  Ne8 {[%clk 0:01:38]} 26. Nxe8 {[%clk 0:01:13]}  Rxe8 {[%clk 0:01:39]} 27. c4 {[%clk 0:01:14]}  dxe4 {[%clk 0:01:38]} 28. fxe4 {[%clk 0:01:14]}  Bg5 {[%clk 0:01:38]} 29. Rc3 {[%clk 0:01:12]}  Rf8 {[%clk 0:01:27]} 30. Rxb3 {[%clk 0:01:11]}  f6 {[%clk 0:01:26]} 31. Bd6 {[%clk 0:01:11]}  Rd8 {[%clk 0:01:25]} 32. e5 {[%clk 0:01:11]}  Rxd6 {[%clk 0:01:21]} 33. exd6 {[%clk 0:01:10]}  Rb8 {[%clk 0:01:22]} 34. c5 {[%clk 0:01:08]}  Kd7 {[%clk 0:01:22]} 35. Bxb7 {[%clk 0:01:03]}  Be3+ {[%clk 0:01:19]} 36. Rxe3 {[%clk 0:01:03]}  Rxb7 {[%clk 0:01:19]} 37. Rxf6 {[%clk 0:01:03]} 1-0


[Site "https://www.chess.com"]

[Event "Titled Tuesday Blitz February 14 Late 2023"]
[White "Alvarez Calzadilla, Jose Avelino"]
[Black "Drnovsek, Gal"]
[WhiteFideId "3526151"]
[BlackFideId "14607077"]
[WhiteElo "2386"]
[BlackElo "2397"]
[Result "0-1"]
[Round "03"]
[TimeControl "180+2"]
[Date "2023.02.14"]
[WhiteClock "0:01:02"]
[BlackClock "0:01:16"]

1. e4 {[%clk 0:02:59]}  e5 {[%clk 0:02:59]} 2. Nf3 {[%clk 0:02:58]}  Nc6 {[%clk 0:03:00]} 3. Bb5 {[%clk 0:02:59]}  a6 {[%clk 0:03:00]} 4. Ba4 {[%clk 0:02:59]}  b5 {[%clk 0:03:00]} 5. Bb3 {[%clk 0:02:59]}  g6 {[%clk 0:03:01]} 6. c3 {[%clk 0:02:56]}  Bg7 {[%clk 0:02:59]} 7. d4 {[%clk 0:02:57]}  exd4 {[%clk 0:03:00]} 8. cxd4 {[%clk 0:02:56]}  Na5 {[%clk 0:03:01]} 9. d5 {[%clk 0:02:48]}  d6 {[%clk 0:02:41]} 10. Bd2 {[%clk 0:02:47]}  Nxb3 {[%clk 0:02:29]} 11. axb3 {[%clk 0:02:48]}  Nf6 {[%clk 0:02:29]} 12. O-O {[%clk 0:02:20]}  O-O {[%clk 0:02:28]} 13. Re1 {[%clk 0:02:01]}  Re8 {[%clk 0:02:27]} 14. Qc2 {[%clk 0:01:58]}  Bg4 {[%clk 0:02:22]} 15. Nd4 {[%clk 0:01:54]}  Bd7 {[%clk 0:01:44]} 16. Qd3 {[%clk 0:01:32]}  Ng4 {[%clk 0:01:44]} 17. Nf3 {[%clk 0:01:23]}  Bxb2 {[%clk 0:01:41]} 18. Nc3 {[%clk 0:01:19]}  b4 {[%clk 0:01:38]} 19. Ne2 {[%clk 0:01:10]}  Bb5 {[%clk 0:01:37]} 20. Qc2 {[%clk 0:01:07]}  Bxa1 {[%clk 0:01:35]} 21. Rxa1 {[%clk 0:01:07]}  Bxe2 {[%clk 0:01:34]} 22. Bg5 {[%clk 0:01:08]}  f6 {[%clk 0:01:29]} 23. Qxe2 {[%clk 0:01:08]}  fxg5 {[%clk 0:01:29]} 24. Nd4 {[%clk 0:01:08]}  Ne5 {[%clk 0:01:27]} 25. Ne6 {[%clk 0:01:06]}  Qd7 {[%clk 0:01:25]} 26. Rxa6 {[%clk 0:01:06]}  Rxa6 {[%clk 0:01:24]} 27. Qxa6 {[%clk 0:01:06]}  Rxe6 {[%clk 0:01:24]} 28. dxe6 {[%clk 0:01:07]}  Qxe6 {[%clk 0:01:25]} 29. f3 {[%clk 0:01:07]}  Qxb3 {[%clk 0:01:24]} 30. Qc8+ {[%clk 0:01:07]}  Kg7 {[%clk 0:01:22]} 31. Qxc7+ {[%clk 0:01:07]}  Nf7 {[%clk 0:01:22]} 32. Qe7 {[%clk 0:01:05]}  Qc3 {[%clk 0:01:20]} 33. h4 {[%clk 0:01:02]}  gxh4 {[%clk 0:01:17]} 34. Qxh4 {[%clk 0:01:02]}  b3 {[%clk 0:01:16]} 0-1


[Site "https://www.chess.com"]